bitfinex/quotes_SOLUSD_20241125
["timestamp","ask_amount","ask_price","bid_price","bid_amount"]
[1732553756859,17.58075144,242.91,242.86,10.0]
[1732553757256,17.58075144,242.92,242.86,10.0]
[1732553757652,17.58075144,242.91,242.86,10.0]
[1732553759558,17.58075144,242.91,242.88,10.0]
[1732553759775,17.58075144,242.92,242.88,10.0]
[1732553759942,17.58075144,242.91,242.88,10.0]
[1732553760269,2.8815,242.93,242.84,10.0]
[1732553760270,17.58075144,242.89,242.84,10.0]
[1732553760470,2.8815,242.93,242.86,10.0]
[1732553760471,17.58075144,242.87,242.86,10.0]
[1732553760672,17.58075144,242.9,242.86,10.0]
[1732553760868,17.58075144,242.91,242.84,17.58075144]
[1732553761167,17.58075144,242.93,242.86,27.58075144]
[1732553761468,17.58075144,242.93,242.88,10.0]
[1732553761862,17.58075144,242.9,242.86,10.0]
[1732553762047,17.58075144,242.9,242.86,20.0]
[1732553762242,17.58075144,242.91,242.86,20.0]
[1732553762767,17.58075144,242.91,242.86,10.0]
[1732553763067,17.58075144,242.9,242.86,10.0]
[1732553763249,17.58075144,242.9,242.86,20.0]
[1732553764952,7.2025,242.97,242.86,20.0]
[1732553765141,17.58075144,242.92,242.86,20.0]
[1732553766159,10.0835,242.97,242.8,22.70193899]
[1732553766160,17.58075144,242.96,242.9,10.0]
[1732553766551,17.58075144,242.96,242.87,4.1174]
[1732553766552,17.58075144,242.91,242.86,10.0]
[1732553766848,17.58075144,242.87,242.81,10.0]
[1732553767046,24.027864,242.96,242.81,10.0]
[1732553767249,17.58075144,242.85,242.81,10.0]
[1732553767457,17.58075144,242.85,242.84,10.0]
[1732553768072,17.58075144,242.86,242.84,10.0]
[1732553768568,17.58075144,242.88,242.84,10.0]
[1732553769147,17.58075144,242.88,242.81,31.69915144]
[1732553769359,17.58075144,242.88,242.85,10.0]
[1732553769951,17.58075144,242.87,242.81,10.0]
[1732553770159,17.58075144,242.85,242.8,28.6225]
[1732553770509,17.58075144,242.81,242.77,10.0]
[1732553770680,17.58075144,242.78,242.73,10.0]
[1732553770967,17.58075144,242.78,242.68,19.1249]
[1732553770968,17.58075144,242.74,242.68,19.1249]
[1732553771175,17.58075144,242.71,242.67,20.0]
[1732553771344,17.58075144,242.7,242.67,10.0]
[1732553771548,17.58075144,242.7,242.68,10.0]
[1732553771776,17.58075144,242.72,242.68,10.0]
[1732553771961,17.58075144,242.72,242.67,10.0]
[1732553772471,17.58075144,242.73,242.71,10.0]
[1732553772845,17.58075144,242.74,242.71,10.0]
[1732553773058,17.58075144,242.75,242.71,10.0]
[1732553774368,10.99738561,242.78,242.73,10.0]
[1732553774573,10.99738561,242.79,242.73,10.0]
[1732553774775,10.99738561,242.79,242.75,10.0]
[1732553775155,10.99738561,242.79,242.75,20.0]
[1732553775366,10.99738561,242.81,242.77,10.0]
[1732553775561,10.99738561,242.81,242.78,10.0]
[1732553775756,10.99738561,242.81,242.71,4.1201]
[1732553775757,10.99738561,242.81,242.73,20.99738561]
[1732553775969,10.99738561,242.8,242.75,10.0]
[1732553776152,10.99738561,242.8,242.78,10.0]
[1732553776553,10.99738561,242.81,242.78,10.0]
[1732553778178,10.99738561,242.81,242.8,10.0]
[1732553778956,10.99738561,242.86,242.8,20.0]
[1732553779365,10.99738561,242.88,242.8,30.99738561]
[1732553779577,10.99738561,242.88,242.84,10.0]
[1732553780173,10.99738561,242.88,242.84,24.1178]
[1732553780381,10.99738561,242.88,242.87,10.0]
[1732553780983,10.99738561,242.88,242.85,10.0]
[1732553781556,10.99738561,242.86,242.83,10.0]
[1732553781786,10.99738561,242.86,242.85,10.0]
[1732553782083,2.8813,242.94,242.87,10.0]
[1732553782263,10.99738561,242.9,242.87,10.0]
[1732553782466,10.99738561,242.9,242.85,14.1176]
[1732553782680,10.99738561,242.91,242.88,10.0]
[1732553784969,10.99738561,242.9,242.88,10.0]
[1732553786275,10.99738561,242.91,242.88,10.0]
[1732553786473,10.99738561,242.93,242.91,10.0]
[1732553786780,10.99738561,242.94,242.91,10.0]
[1732553786991,10.99738561,242.95,242.91,10.0]
[1732553787174,2.8805,243.01,242.93,20.0]
[1732553787364,2.8805,243.01,242.93,10.0]
[1732553787365,10.99738561,242.95,242.93,10.0]
[1732553787566,10.99738561,242.94,242.93,10.0]
[1732553788081,10.99738561,242.95,242.93,10.0]
[1732553788580,10.99738561,242.96,242.93,20.0]
[1732553789181,10.99738561,242.96,242.93,10.0]
[1732553789374,10.99738561,242.96,242.93,20.0]
[1732553790275,10.99738561,243.01,242.94,10.99738561]
[1732553790489,10.99738561,242.99,242.95,10.0]
[1732553790781,10.0798,243.06,242.96,10.0]
[1732553790986,10.99738561,242.97,242.92,10.0]
[1732553791192,23.776884,243.05,242.95,10.0]
[1732553791383,10.99738561,242.96,242.94,10.0]
[1732553791565,10.99738561,242.97,242.94,10.0]
[1732553791965,10.99738561,242.98,242.96,20.0]
[1732553792184,10.99738561,243.0,242.96,20.0]
[1732553793068,10.99738561,243.01,242.96,20.0]
[1732553793576,10.99738561,243.0,242.97,10.0]
[1732553794981,13.87788561,243.01,242.97,10.0]
[1732553795192,7.1999,243.06,242.97,10.0]
[1732553795193,10.99738561,243.02,242.97,10.0]
[1732553795395,13.87778561,243.02,242.97,10.0]
[1732553795890,10.99738561,243.01,242.97,10.0]
[1732553796197,10.99738561,243.05,243.02,10.0]
[1732553796401,10.99738561,243.07,243.02,20.0]
[1732553796565,10.99738561,243.07,243.0,10.99738561]
[1732553796566,10.99738561,243.11,243.07,10.0]
[1732553796769,10.99738561,243.11,243.05,10.0]
[1732553796770,17.6502946,243.12,243.05,14.1143]
[1732553796969,10.99738561,243.11,243.08,10.0]
[1732553797284,10.99738561,243.11,243.07,10.0]
[1732553797478,10.99738561,243.11,243.05,10.0]
[1732553797681,10.99738561,243.11,243.08,10.0]
[1732553797998,13.87678561,243.11,243.08,10.0]
[1732553798376,13.87678561,243.11,243.05,10.0]
[1732553798579,13.87678561,243.11,243.07,10.0]
[1732553799198,13.87678561,243.11,243.05,20.0]
[1732553799471,6.65290899,243.12,243.07,10.0]
[1732553799690,6.65290899,243.12,243.1,10.0]
[1732553799997,6.65290899,243.12,243.11,10.0]
[1732553800885,6.65290899,243.12,243.09,10.0]
[1732553801081,10.99738561,243.1,243.05,10.0]
[1732553801291,10.99738561,243.08,243.04,10.0]
[1732553801495,10.99738561,243.1,243.07,10.0]
[1732553802395,10.99738561,243.1,243.08,10.0]
[1732553802592,10.99738561,243.11,243.1,10.0]
[1732553802801,6.65290899,243.12,243.11,10.0]
[1732553803098,10.99738561,243.15,243.11,10.0]
[1732553803499,10.99738561,243.15,243.12,10.0]
[1732553803802,10.99738561,243.15,243.14,10.0]
[1732553804378,10.99738561,243.15,243.12,10.0]
[1732553804688,2.8786,243.17,243.12,10.0]
[1732553804689,2.8786,243.17,243.14,10.0]
[1732553804881,2.8781,243.21,243.14,10.0]
[1732553805401,2.8781,243.21,243.12,10.0]
[1732553805602,2.8781,243.21,243.14,10.0]
[1732553805804,10.99738561,243.16,243.14,10.0]
[1732553806384,10.99738561,243.15,243.14,10.0]
[1732553808083,13.87598561,243.17,243.14,10.0]
[1732553808278,10.99738561,243.16,243.14,10.0]
[1732553808599,10.99738561,243.15,243.14,10.0]
[1732553810104,13.87628561,243.15,243.11,10.0]
[1732553810293,10.99738561,243.12,243.08,10.0]
[1732553810491,10.99738561,243.11,243.08,10.0]
[1732553811290,10.99738561,243.11,243.1,10.0]
[1732553811809,10.99738561,243.14,243.1,10.0]
[1732553812109,10.99738561,243.16,243.14,10.0]
[1732553812284,10.99738561,243.15,243.14,10.0]
[1732553812815,10.99738561,243.16,243.14,10.0]
[1732553812992,10.99738561,243.16,243.14,20.0]
[1732553813401,10.99738561,243.16,243.14,10.0]
[1732553813711,10.99738561,243.16,243.14,20.0]
[1732553813895,10.99738561,243.15,243.14,10.0]
[1732553814097,10.99738561,243.16,243.14,10.0]
[1732553814294,10.99738561,243.16,243.14,20.0]
[1732553814615,10.99738561,243.17,243.14,20.0]
[1732553814910,10.99738561,243.17,243.14,10.0]
[1732553815313,10.99738561,243.15,243.12,10.0]
[1732553815915,10.99738561,243.16,243.14,10.0]
[1732553816583,7.1944,243.25,243.17,10.0]
[1732553816906,10.99738561,243.22,243.17,20.0]
[1732553817406,10.99738561,243.21,243.17,20.0]
[1732553818093,10.99738561,243.2,243.17,10.0]
[1732553818293,10.99738561,243.18,243.17,10.0]
[1732553818693,13.87588561,243.18,243.17,10.0]
[1732553819390,13.87588561,243.18,243.16,10.0]
[1732553819587,2.8785,243.18,243.16,10.0]
[1732553819797,2.8773,243.29,243.22,10.0]
[1732553819994,10.99738561,243.28,243.24,10.0]
[1732553820190,20.52241469,243.3,243.24,10.0]
[1732553820407,20.52241469,243.3,243.26,10.0]
[1732553820910,20.52241469,243.3,243.24,10.0]
[1732553820911,10.99738561,243.28,243.24,10.0]
[1732553821121,10.99738561,243.28,243.19,10.0]
[1732553821122,10.99738561,243.25,243.21,10.0]
[1732553821416,10.99738561,243.24,243.21,10.0]
[1732553821999,10.99738561,243.24,243.23,10.0]
[1732553822512,10.99738561,243.24,243.21,10.0]
[1732553822814,10.99738561,243.22,243.19,20.0]
[1732553823040,10.99738561,243.22,243.2,10.0]
[1732553823201,10.99738561,243.23,243.2,20.0]
[1732553823597,10.99738561,243.22,243.2,20.0]
[1732553823807,10.99738561,243.22,243.2,10.0]
[1732553824117,10.99738561,243.21,243.18,38.8243]
[1732553824320,10.99738561,243.21,243.2,10.0]
[1732553824619,10.99738561,243.21,243.17,10.0]
[1732553824801,10.99738561,243.18,243.13,39.6411]
[1732553825000,10.99738561,243.16,243.13,29.6411]
[1732553825203,10.99738561,243.15,243.13,10.0]
[1732553825406,10.99738561,243.16,243.13,10.0]
[1732553825607,10.99738561,243.15,243.13,10.0]
[1732553826000,10.99738561,243.17,243.15,10.0]
[1732553826197,10.99738561,243.17,243.16,10.0]
[1732553826715,13.87598561,243.17,243.13,10.0]
[1732553827122,10.99738561,243.15,243.13,10.0]
[1732553827327,10.99738561,243.15,243.14,10.0]
[1732553827629,10.99738561,243.15,243.13,10.0]
[1732553828123,13.87598561,243.17,243.16,10.0]
[1732553828530,13.87598561,243.17,243.13,10.0]
[1732553828833,13.87598561,243.17,243.15,10.0]
[1732553829232,13.87598561,243.17,243.13,10.0]
[1732553829433,10.99738561,243.13,243.09,10.0]
[1732553829727,10.99738561,243.13,243.08,10.0]
[1732553829728,10.99738561,243.13,243.12,10.0]
[1732553830102,10.99738561,243.15,243.11,10.0]
[1732553830333,10.99738561,243.15,243.13,10.0]
[1732553830709,10.99738561,243.15,243.14,10.0]
[1732553831718,13.87618561,243.15,243.14,10.0]
[1732553832110,2.8788,243.15,243.14,10.0]
[1732553832440,10.99738561,243.16,243.14,10.0]
[1732553833828,10.99738561,243.18,243.14,10.0]
[1732553834035,10.99738561,243.17,243.14,10.0]
[1732553834812,2.8787,243.16,243.14,10.0]
[1732553835014,13.87608561,243.16,243.11,10.0]
[1732553835217,10.99738561,243.18,243.14,10.0]
[1732553835526,10.99738561,243.18,243.15,10.0]
[1732553835711,13.87558561,243.2,243.17,10.0]
[1732553836431,8.86542702,243.26,243.17,10.0]
[1732553836432,13.87548561,243.22,243.17,10.0]
[1732553836829,10.99738561,243.27,243.23,10.0]
[1732553837015,10.99738561,243.25,243.23,10.0]
[1732553837210,10.99738561,243.25,243.19,10.0]
[1732553837412,10.99738561,243.2,243.19,9.5]
[1732553839437,13.87568561,243.2,243.19,9.5]
[1732553839738,10.99738561,243.2,243.19,9.5]
[1732553840116,13.87558561,243.2,243.19,9.5]
[1732553840316,9.89271166,243.2,243.19,9.5]
[1732553840516,2.8782,243.2,243.19,9.5]
[1732553841139,7.01451166,243.25,243.21,19.5]
[1732553841328,7.01451166,243.27,243.21,19.5]
[1732553841638,7.01451166,243.27,243.24,9.5]
[1732553842027,6.64792908,243.3,243.27,10.0]
[1732553842231,13.66244074,243.3,243.27,10.0]
[1732553842441,17.59901486,243.3,243.27,10.0]
[1732553842730,10.95108578,243.28,243.26,9.5]
[1732553843316,13.82838578,243.28,243.26,9.5]
[1732553843519,10.95108578,243.28,243.26,9.5]
[1732553844322,13.82838578,243.28,243.26,9.5]
[1732553844516,13.82838578,243.28,243.25,10.0]
[1732553845032,13.82838578,243.28,243.26,9.5]
[1732553848637,23.776884,243.27,243.22,10.0]
[1732553848943,34.72796978,243.26,243.25,9.5]
[1732553849441,34.72796978,243.26,243.22,10.0]
[1732553849650,34.72796978,243.26,243.25,9.5]
[1732553849817,34.72796978,243.26,243.22,10.0]
[1732553850023,10.95108578,243.24,243.23,9.5]
[1732553850224,10.95108578,243.24,243.21,9.5]
[1732553850446,10.95108578,243.22,243.2,10.0]
[1732553850632,10.95108578,243.22,243.2,9.5]
[1732553850819,2.8781,243.21,243.2,9.5]
[1732553852248,10.95108578,243.23,243.2,19.5]
[1732553852433,10.95108578,243.23,243.22,9.5]
[1732553854043,10.95108578,243.23,243.2,10.0]
[1732553854339,10.95108578,243.23,243.22,9.5]
[1732553854340,13.82898578,243.23,243.22,9.5]
[1732553854549,13.82898578,243.23,243.2,9.5]
[1732553854721,10.95108578,243.21,243.2,9.5]
[1732553855845,10.95108578,243.24,243.23,9.5]
[1732553856642,37.60576978,243.24,243.23,9.5]
[1732553857348,37.60576978,243.24,243.21,9.5]
[1732553857533,10.95108578,243.22,243.21,9.5]
[1732553858237,2.8779,243.23,243.21,19.5]
[1732553858447,13.82898578,243.23,243.21,19.5]
[1732553858743,13.82888578,243.25,243.24,9.5]
[1732553859523,23.776884,243.26,243.24,9.5]
[1732553859740,10.95108578,243.29,243.26,9.5]
[1732553859934,6.64792908,243.3,243.29,10.0]
[1732553861946,2.8769,243.32,243.29,10.0]
[1732553862152,2.8769,243.32,243.26,30.49488578]
[1732553862153,23.776884,243.3,243.27,10.0]
[1732553862458,23.776884,243.32,243.29,9.5]
[1732553862756,2.9914312,243.34,243.33,9.5]
[1732553862941,0.1148312,243.34,243.33,9.5]
[1732553864441,0.1148312,243.34,243.3,10.0]
[1732553864442,23.776884,243.33,243.3,10.0]
[1732553864649,10.95108578,243.31,243.3,10.0]
[1732553865054,10.95108578,243.33,243.32,19.5]
[1732553865236,0.1148312,243.34,243.32,19.5]
[1732553865562,0.1148312,243.34,243.33,9.5]
[1732553865764,0.1148312,243.34,243.32,10.0]
[1732553865935,0.1148312,243.34,243.33,9.5]
[1732553866661,2.9914312,243.34,243.33,9.5]
[1732553867171,2.9914312,243.34,243.33,30.45108578]
[1732553867172,0.1148312,243.34,243.33,30.45108578]
[1732553867337,0.1148312,243.34,243.33,50.11738578]
[1732553867536,0.1148312,243.34,243.33,39.1663]
[1732553867752,0.1148312,243.34,243.33,50.11738578]
[1732553868458,0.1148312,243.34,243.33,54.22698578]
[1732553872351,2.8746,243.51,243.48,10.0]
[1732553872665,10.95108578,243.49,243.48,10.0]
[1732553873061,10.95108578,243.51,243.5,10.0]
[1732553873237,10.95108578,243.51,243.49,9.5]
[1732553873441,10.95108578,243.5,243.49,9.5]
[1732553873841,10.95108578,243.51,243.5,10.0]
[1732553874037,10.95108578,243.51,243.49,9.5]
[1732553874262,10.95108578,243.5,243.49,9.5]
[1732553874963,10.95108578,243.5,243.49,19.5]
[1732553875150,10.95108578,243.5,243.49,9.5]
[1732553876949,7.1852,243.56,243.49,10.0]
[1732553876950,10.95108578,243.52,243.49,10.0]
[1732553877249,10.95108578,243.51,243.49,19.5]
[1732553877769,10.95108578,243.53,243.51,10.0]
[1732553877947,10.95108578,243.52,243.51,10.0]
[1732553878151,10.95108578,243.52,243.51,19.5]
[1732553878478,134.9775364,243.58,243.54,19.5]
[1732553878479,10.95108578,243.56,243.54,19.5]
[1732553878763,10.95108578,243.57,243.56,10.0]
[1732553878946,14.30242218,243.58,243.56,19.5]
[1732553879544,11.42862218,243.58,243.56,19.5]
[1732553879747,14.30242218,243.58,243.56,19.5]
[1732553880352,10.95108578,243.57,243.56,19.5]
[1732553881256,3.3513364,243.58,243.56,19.5]
[1732553881257,14.30242218,243.58,243.56,19.5]
[1732553881469,10.95108578,243.57,243.56,19.5]
[1732553885360,13.82498578,243.57,243.56,10.0]
[1732553885571,13.82498578,243.57,243.52,19.5]
[1732553885765,10.95108578,243.53,243.5,19.5]
[1732553886084,10.95108578,243.51,243.5,9.5]
[1732553886277,10.95108578,243.51,243.5,19.5]
[1732553886455,13.82568578,243.51,243.5,19.5]
[1732553887375,13.82568578,243.51,243.5,10.0]
[1732553887673,13.82568578,243.51,243.5,19.5]
[1732553887874,2.874,243.56,243.54,10.0]
[1732553888053,2.874,243.56,243.54,19.5]
[1732553888054,10.95108578,243.55,243.54,19.5]
[1732553889173,10.95108578,243.55,243.54,10.0]
[1732553889355,10.95108578,243.55,243.54,19.5]
[1732553890609,13.82518578,243.55,243.52,19.5]
[1732553890759,10.95108578,243.53,243.5,10.0]
[1732553890954,10.95108578,243.51,243.5,10.0]
[1732553892570,13.82568578,243.51,243.5,10.0]
[1732553893167,10.95108578,243.51,243.5,10.0]
[1732553893464,10.95108578,243.53,243.52,19.5]
[1732553894078,10.95108578,243.55,243.54,10.0]
[1732553894465,10.95108578,243.55,243.54,19.5]
[1732553895265,0.4775364,243.58,243.56,19.5]
[1732553897285,11.42862218,243.58,243.56,19.5]
[1732553897786,0.4775364,243.58,243.56,19.5]
[1732553899097,11.42862218,243.58,243.56,19.5]
[1732553899971,0.4775364,243.58,243.56,19.5]
[1732553903065,3.3513364,243.58,243.56,19.5]
[1732553903295,14.30242218,243.58,243.56,19.5]
[1732553903586,14.30242218,243.58,243.57,9.5]
[1732553903885,14.30242218,243.58,243.56,10.0]
[1732553904087,14.30242218,243.58,243.49,19.0421]
[1732553904088,21.48682218,243.58,243.52,19.5]
[1732553904279,10.95108578,243.53,243.52,10.0]
[1732553904483,10.5357364,243.58,243.54,10.0]
[1732553904484,10.95108578,243.55,243.54,10.0]
[1732553904791,10.95108578,243.55,243.54,19.5]
[1732553904993,0.4775364,243.58,243.57,19.5]
[1732553909083,0.4775364,243.58,243.57,10.0]
[1732553909292,0.4775364,243.58,243.57,19.5]
[1732553909592,3.3512364,243.58,243.55,19.5]
[1732553909773,10.95108578,243.56,243.55,9.5]
[1732553909965,10.95108578,243.56,243.53,19.5]
[1732553910170,3.3512364,243.58,243.55,9.5]
[1732553910796,3.3512364,243.58,243.53,19.5]
[1732553910976,10.95108578,243.55,243.53,10.0]
[1732553911170,10.95108578,243.55,243.51,9.5]
[1732553911171,10.95108578,243.55,243.51,10.0]
[1732553911497,10.95108578,243.52,243.49,19.5]
[1732553911672,10.95108578,243.5,243.49,19.5]
[1732553911875,10.95108578,243.5,243.49,10.0]
[1732553912078,10.95108578,243.5,243.47,10.0]
[1732553912291,10.95108578,243.48,243.47,10.0]
[1732553912794,10.95108578,243.48,243.43,9.5]
[1732553913121,10.95108578,243.44,243.43,9.5]
[1732553913295,10.95108578,243.44,243.42,10.0]
[1732553913594,2.8755,243.43,243.42,10.0]
[1732553914601,2.8755,243.43,243.41,9.5]
[1732553914785,10.95108578,243.42,243.4,10.0]
[1732553914971,2.8755,243.43,243.38,10.0]
[1732553914972,10.95108578,243.41,243.38,10.0]
[1732553915298,10.95108578,243.39,243.36,19.5]
[1732553915586,10.95108578,243.41,243.4,10.0]
[1732553915793,10.95108578,243.41,243.4,19.5]
[1732553916290,10.95108578,243.41,243.37,19.5]
[1732553916591,10.95108578,243.39,243.36,10.0]
[1732553916773,10.95108578,243.39,243.38,9.5]
[1732553917284,10.95108578,243.39,243.38,19.5]
[1732553917593,13.82688578,243.41,243.4,19.5]
[1732553918085,13.82688578,243.41,243.4,10.0]
[1732553918278,13.82688578,243.41,243.37,10.0]
[1732553918474,10.95108578,243.37,243.36,19.5]
[1732553918800,10.95108578,243.39,243.38,9.5]
[1732553919101,10.95108578,243.39,243.38,19.5]
[1732553919476,10.95108578,243.39,243.38,9.5]
[1732553919687,10.95108578,243.39,243.36,10.0]
[1732553919991,7.1891,243.43,243.36,10.0]
[1732553920300,23.776884,243.42,243.36,9.5]
[1732553920473,23.776884,243.42,243.35,0.14882837]
[1732553921379,0.5,243.41,243.35,0.14882837]
[1732553921581,23.776884,243.42,243.35,0.14882837]
[1732553921900,13.82738578,243.36,243.35,0.14882837]
[1732553922884,37.60426978,243.36,243.35,0.14882837]
[1732553924099,10.95108578,243.37,243.36,9.5]
[1732553924396,10.95108578,243.37,243.35,10.14882837]
[1732553924397,10.95108578,243.37,243.35,9.64882837]
[1732553924602,10.95108578,243.37,243.35,0.14882837]
[1732553925989,2.8763,243.36,243.35,0.14882837]
[1732553927293,10.95108578,243.4,243.37,19.5]
[1732553927496,4.54749243,243.47,243.41,10.0]
[1732553927702,10.95108578,243.43,243.41,19.5]
[1732553928000,2.8756,243.42,243.36,10.0]
[1732553928201,10.95108578,243.36,243.35,0.14882837]
[1732553928888,34.72796978,243.36,243.35,0.14882837]
[1732553929500,45.67905556,243.36,243.35,0.14882837]
[1732553929705,34.72796978,243.36,243.35,0.14882837]
[1732553929889,45.67905556,243.36,243.35,0.14882837]
[1732553930207,48.55535556,243.36,243.35,0.14882837]
[1732553933710,37.60426978,243.36,243.35,0.14882837]
[1732553934083,48.55535556,243.36,243.35,0.14882837]
[1732553934714,49.05535556,243.36,243.35,0.14882837]
[1732553937519,49.05535556,243.36,243.25,10.0]
[1732553937520,0.5,243.34,243.23,9.5]
[1732553937701,10.95108578,243.24,243.2,29.6977]
[1732553937889,0.5,243.34,243.24,10.0]
[1732553938096,10.95108578,243.25,243.23,9.5]
[1732553939110,10.95108578,243.25,243.22,10.0]
[1732553939313,10.95108578,243.23,243.22,19.5]
[1732553939509,10.95108578,243.23,243.2,39.1977]
[1732553939690,13.82898578,243.23,243.2,39.1977]
[1732553939894,13.82898578,243.23,243.22,9.5]
[1732553940091,10.95108578,243.23,243.22,9.5]
[1732553940309,10.95108578,243.23,243.22,19.5]
[1732553940816,13.82898578,243.23,243.2,19.5]
[1732553941111,10.95108578,243.21,243.2,19.5]
[1732553941994,13.82918578,243.21,243.2,9.5]
[1732553942195,2.8781,243.21,243.2,19.5]
[1732553942492,2.8781,243.21,243.2,9.5]
[1732553943219,2.8781,243.21,243.2,19.5]
[1732553946023,2.8781,243.21,243.2,10.0]
[1732553946228,2.8781,243.21,243.2,19.5]
[1732553947828,2.8781,243.21,243.2,9.5]
[1732553948010,2.8781,243.21,243.2,19.5]
[1732553948397,7.01353279,243.22,243.21,9.5]
[1732553948598,2.8777,243.25,243.22,10.0]
[1732553948910,7.01353279,243.23,243.22,10.0]
[1732553949299,2.8777,243.25,243.23,9.5]
[1732553949704,7.01353279,243.24,243.23,9.5]
[1732553950401,9.89133279,243.24,243.23,9.5]
[1732553950903,9.89133279,243.24,243.22,10.0]
[1732553951106,2.8778,243.24,243.23,9.5]
[1732553951306,9.89133279,243.24,243.23,9.5]
[1732553951716,7.01353279,243.24,243.23,9.5]
[1732553952024,2.8767,243.33,243.28,10.0]
[1732553952224,7.01353279,243.29,243.28,10.0]
[1732553952724,7.01353279,243.29,243.26,19.5]
[1732553953021,7.01353279,243.27,243.26,9.5]
[1732553953217,7.01353279,243.27,243.24,10.0]
[1732553953422,7.01353279,243.25,243.24,9.5]
[1732553954114,9.89123279,243.25,243.22,19.5]
[1732553954317,7.01353279,243.23,243.22,9.5]
[1732553954629,7.01353279,243.23,243.22,19.5]
[1732553956102,7.01353279,243.25,243.24,9.5]
[1732553956304,7.01353279,243.25,243.24,19.5]
[1732553956498,10.95555711,243.25,243.24,19.5]
[1732553957210,10.95555711,243.29,243.28,10.0]
[1732553957416,10.95555711,243.29,243.28,9.5]
[1732553957727,13.83275711,243.29,243.28,9.5]
[1732553958104,13.83275711,243.29,243.27,19.5]
[1732553958420,10.95555711,243.28,243.27,10.0]
[1732553958731,10.95555711,243.28,243.25,9.5]
[1732553958909,10.95555711,243.26,243.25,9.5]
[1732553959105,34.73244111,243.26,243.24,9.5]
[1732553959313,10.95555711,243.25,243.24,9.5]
[1732553960118,13.83315711,243.25,243.24,9.5]
[1732553961233,13.83315711,243.25,243.22,9.5]
[1732553961526,13.83315711,243.25,243.21,10.0]
[1732553961527,10.95555711,243.23,243.21,10.0]
[1732553961707,10.95555711,243.22,243.21,10.0]
[1732553962027,10.95555711,243.22,243.2,9.5]
[1732553962436,10.95555711,243.21,243.2,9.5]
[1732553964211,10.95555711,243.22,243.2,9.5]
[1732553964415,2.8778,243.24,243.21,10.0]
[1732553964741,23.776884,243.21,243.18,9.5]
[1732553965033,34.73244111,243.21,243.14,10.0]
[1732553965334,10.95555711,243.15,243.14,9.5]
[1732553966620,23.776884,243.14,243.11,9.5]
[1732553966827,10.95555711,243.12,243.11,9.5]
[1732553967022,10.95555711,243.13,243.11,9.5]
[1732553967224,2.8786,243.17,243.08,18.1563]
[1732553967225,10.95555711,243.14,243.13,9.5]
[1732553967839,34.73244111,243.14,243.13,9.5]
[1732553968517,34.73244111,243.14,243.11,9.5]
[1732553968712,10.95555711,243.12,243.11,9.5]
[1732553969139,34.73244111,243.12,243.11,9.5]
[1732553969433,10.95555711,243.12,243.11,9.5]
[1732553970544,13.83475711,243.12,243.11,9.5]
[1732553972844,10.95555711,243.12,243.11,19.5]
[1732553973162,10.95555711,243.14,243.13,19.5]
[1732553974528,2.8785,243.18,243.16,9.5]
[1732553974846,10.95555711,243.17,243.16,9.5]
[1732553975649,10.95555711,243.17,243.15,10.0]
[1732553975821,18.15025711,243.24,243.13,9.5]
[1732553975822,23.776884,243.22,243.18,10.0]
[1732553976021,23.776884,243.22,243.18,19.5]
[1732553976741,23.776884,243.22,243.18,9.5]
[1732553977244,2.8779,243.23,243.13,9.5]
[1732553977245,23.776884,243.18,243.13,9.5]
[1732553977421,10.95555711,243.14,243.13,19.5]